fUSD/lending_fUSD_20260526
["ID","MTS","AMOUNT","RATE_DAILY","PERIOD"]
[423003308,1779741032000,-332.23887642,0.00013303,2]
[423003291,1779741032000,-332.7359301,0.00013303,2]
[423003270,1779741032000,-350.0,0.00013365,2]
[423003272,1779741032000,-163.0,0.000134,2]
[423003273,1779741032000,-1303.513,0.00013402,2]
[423003269,1779741032000,-600.0,0.00013356,2]
[423003275,1779741032000,-500.0,0.00013403,2]
[423003268,1779741032000,-500.0,0.00013356,2]
[423003284,1779741032000,-8416.80960234,0.00013404,2]
[423003282,1779741032000,-1254.41808677,0.00013404,2]
[423003280,1779741032000,-36325.46128977,0.00013404,2]
[423003305,1779741032000,-167.2640699,0.00013303,2]
[423003267,1779741032000,-739.56356359,0.00013337,2]
[423003278,1779741032000,-150.0,0.00013403,2]
[423003257,1779741032000,-510.77677328,0.00013303,2]
[423003258,1779741032000,-500.0,0.00013303,2]
[423003261,1779741032000,-1425.4291,0.00013304,2]
[423003260,1779741032000,-499.93205255,0.00013303,2]
[423003255,1779741032000,-500.0,0.00013303,2]
[423003263,1779741032000,-166629.3983288,0.00013304,2]
[423003262,1779741032000,-69969.73905004,0.00013304,2]
[423003266,1779741032000,-357.11459773,0.00013337,2]
[423003259,1779741032000,-500.0,0.00013303,2]
[423003265,1779741032000,-315144.48337154,0.00013304,2]
[423003264,1779741032000,-253893.22694962,0.00013304,2]
[423003318,1779741033000,-56.80761327,0.00013303,2]
[423003326,1779741033000,-500.0,0.00013303,2]
[423003328,1779741033000,-54.08348412,0.00013303,2]
[423003324,1779741033000,-500.0,0.00013303,2]
[423003322,1779741033000,-500.0,0.00013303,2]
[423003369,1779741038000,-441.66725116,0.00012305,2]
[423003368,1779741038000,-699.99255023,0.00012305,2]
[423003367,1779741038000,-150.0,0.00012305,2]
[423003370,1779741038000,-51.58019861,0.00012305,2]
[423003374,1779741038000,-1193.24,0.00013228,2]
[423003372,1779741038000,-640.6381997,0.0001292,2]
[423003373,1779741038000,-552.6018003,0.0001292,2]
[423003375,1779741038000,-330.29016739,0.00013303,2]
[423003371,1779741038000,-1193.24,0.00012613,2]
[423003609,1779741040000,-603.36308311,0.00013303,2]
[423003560,1779741040000,-314.45425309,0.00013237,2]
[423003562,1779741040000,-83.78280583,0.00013303,2]
[423003596,1779741040000,-31.84354266,0.00013303,2]
[423003604,1779741040000,-500.0,0.00013303,2]
[423003602,1779741040000,-500.0,0.00013303,2]
[423003598,1779741040000,-500.0,0.00013303,2]
[423003600,1779741040000,-500.0,0.00013303,2]
[423003606,1779741040000,-500.0,0.00013303,2]
[423003613,1779741040000,-500.0,0.00013303,2]
[423003615,1779741040000,-500.0,0.00013303,2]
[423003617,1779741040000,-500.0,0.00013303,2]
[423003630,1779741040000,-500.0,0.00013303,2]
[423003620,1779741040000,-500.0,0.00013303,2]
[423003622,1779741040000,-500.0,0.00013303,2]
[423003623,1779741040000,-500.0,0.00013303,2]
[423003626,1779741040000,-500.0,0.00013303,2]
[423003627,1779741040000,-500.0,0.00013303,2]
[423003611,1779741040000,-500.0,0.00013303,2]
[423003633,1779741041000,-1617.55385087,0.00013404,2]
[423003638,1779741041000,-770.18814,0.00013404,2]
[423003631,1779741041000,-500.0,0.00013303,2]
[423003997,1779741043000,-190310.48342517,0.00013404,2]
[423003990,1779741043000,-13848.25748659,0.00013404,2]
[423004032,1779741044000,-10130.62683816,0.00013404,2]
[423004207,1779741046000,-6910.44,0.00013404,2]
[423004210,1779741046000,-655.2041005,0.00013404,2]
[423004208,1779741046000,-283.82629871,0.00013404,2]
[423004209,1779741046000,-951.46598943,0.00013404,2]
[423004212,1779741046000,-1279.40585,0.00013404,2]
[423004213,1779741046000,-2141.67,0.00013404,2]
[423004215,1779741046000,-290.90750786,0.00013404,2]
[423004214,1779741046000,-1141.6,0.00013404,2]
[423004211,1779741046000,-5375.881,0.00013404,2]
[423004216,1779741060000,207.93440736,0.0001,2]
[423004219,1779741102000,224.75,0.00027759,120]
[423004243,1779741625000,167.66,8.993e-05,2]
[423004242,1779741625000,167.66,5.995e-05,2]
[423004247,1779742140000,1000.0,0.0002808,120]
[423004268,1779742231000,-1599.90616712,0.00011444,2]
[423004267,1779742231000,-228.74698135,0.00011442,2]
[423004274,1779742231000,-300.0,0.0001149,2]
[423004265,1779742231000,-150.0,0.00011121,2]
[423004264,1779742231000,-152.0,0.00011039,7]
[423004258,1779742231000,-400.0,0.00010904,2]
[423004273,1779742231000,-1200.0,0.0001149,2]
[423004260,1779742231000,-200.0,0.00010959,2]
[423004261,1779742231000,-163.49,0.00010959,2]
[423004259,1779742231000,-2941.8788318,0.00010904,2]
[423004257,1779742231000,-1889.2080432,0.00010904,2]
[423004262,1779742231000,-150.0,0.00011012,2]
[423004266,1779742231000,-242.0,0.0001123,2]
[423004263,1779742231000,-152.0,0.00011016,7]
[423004269,1779742231000,-562.34383288,0.00011444,2]
[423004285,1779742231000,-150.0,0.00011771,2]
[423004276,1779742231000,-300.0,0.0001149,2]
[423004282,1779742231000,-4924.0,0.00011707,2]
[423004270,1779742231000,-2000.0,0.00011444,2]
[423004283,1779742231000,-1411.97,0.00011712,2]
[423004280,1779742231000,-9761.0,0.00011647,2]
[423004281,1779742231000,-6094.0,0.00011699,2]
[423004277,1779742231000,-6501.07,0.00011491,2]
[423004278,1779742231000,-150.0,0.00011542,2]
[423004275,1779742231000,-1200.0,0.0001149,2]
[423004271,1779742231000,-212.53,0.00011451,2]
[423004272,1779742231000,-253.75,0.00011452,2]
[423004279,1779742231000,-6427.28170191,0.00011599,2]
[423004318,1779742232000,-1411.97,0.0001259,2]
[423004322,1779742232000,-420.0,0.0001262,2]
[423004326,1779742232000,-1680.0,0.00012639,2]
[423004324,1779742232000,-500.0,0.0001263,2]
[423004330,1779742232000,-1400.0,0.000127,4]
[423004340,1779742232000,-900.0,0.000128,4]
[423004334,1779742232000,-500.0,0.000127,2]
[423004332,1779742232000,-400.0,0.000127,4]
[423004338,1779742232000,-2900.0,0.000128,4]
[423004336,1779742232000,-2153.96,0.00012757,2]
[423004316,1779742232000,-173.03,0.00012579,2]
[423004320,1779742232000,-1455.0,0.0001262,2]
[423004314,1779742232000,-191.39,0.00012329,2]
[423004312,1779742232000,-166.75,0.00012327,2]
[423004298,1779742232000,-250.0,0.00012055,2]
[423004296,1779742232000,-500.0,0.00012055,2]
[423004294,1779742232000,-178.29313302,0.00012055,2]
[423004300,1779742232000,-361.43,0.00012055,2]
[423004292,1779742232000,-167.66,0.0001199,2]
[423004342,1779742232000,-2000.0,0.00012875,2]
[423004304,1779742232000,-150.0,0.00012134,2]
[423004310,1779742232000,-1411.97,0.00012297,2]
[423004308,1779742232000,-11467.0,0.00012158,2]
[423004306,1779742232000,-1000.0,0.00012157,2]
[423004293,1779742232000,-1411.97,0.00012004,2]
[423004289,1779742232000,-500.0,0.00011807,2]
[423004287,1779742232000,-1373.0,0.00011799,2]
[423004291,1779742232000,-274.17,0.00011873,2]
[423004302,1779742232000,-635.04,0.00012099,2]
[423004353,1779742232000,-350.0,0.00013176,2]
[423004328,1779742232000,-312.62,0.00012672,2]
[423004354,1779742232000,-1616.48095237,0.00013204,2]
[423004352,1779742232000,-354.0,0.00013151,2]
[423004377,1779742232000,-8475.41891671,0.00013304,2]
[423004379,1779742232000,-427.65,0.00013304,2]
[423004378,1779742232000,-5941.17315993,0.00013304,2]
[423004376,1779742232000,-25956.65705845,0.00013304,2]
[423004375,1779742232000,-14119.57031285,0.00013304,2]
[423004372,1779742232000,-166.65911695,0.00013303,2]
[423004374,1779742232000,-150.0,0.00013304,2]
[423004373,1779742232000,-150.0,0.00013304,2]
[423004370,1779742232000,-210.33630831,0.00013303,2]
[423004371,1779742232000,-500.0,0.00013303,2]
[423004369,1779742232000,-500.0,0.00013303,2]
[423004367,1779742232000,-500.0,0.00013303,2]
[423004368,1779742232000,-500.0,0.00013303,2]
[423004366,1779742232000,-500.0,0.00013303,2]
[423004365,1779742232000,-770.7589289,0.00013303,2]
[423004363,1779742232000,-577.61138007,0.00013303,2]
[423004346,1779742232000,-1411.97,0.00012883,2]
[423004356,1779742232000,-329.22755574,0.00013204,2]
[423004355,1779742232000,-811.56294624,0.00013204,2]
[423004344,1779742232000,-195.43775586,0.00012876,2]
[423004357,1779742232000,-5000.0,0.00013204,2]
[423004358,1779742232000,-2500.0,0.00013204,2]
[423004348,1779742232000,-4400.0,0.000129,4]
[423004350,1779742232000,-1400.0,0.000129,4]
[423004359,1779742232000,-255.0,0.00013214,2]
[423004360,1779742232000,-500.0,0.00013248,2]
[423004362,1779742232000,-1113.19385396,0.00013303,3]
[423004361,1779742232000,-3410.76849244,0.0001327,2]
[423004364,1779742232000,-315.44579433,0.00013303,2]
[423004351,1779742232000,-500.0,0.00012974,2]
[423004429,1779742240000,-70249.20265291,0.00013304,2]
[423004433,1779742240000,-289.5,0.00013304,2]
[423004434,1779742240000,-2200.0,0.00013304,2]
[423004432,1779742240000,-2706.235,0.00013304,2]
[423004430,1779742240000,-40452.92053555,0.00013304,2]
[423004431,1779742240000,-800.30798175,0.00013304,2]
[423004448,1779742242000,-834.84277497,0.00013304,2]
[423004452,1779742243000,-11200.0,0.00013304,2]
[423004451,1779742243000,-4857.71386734,0.00013304,2]
[423004450,1779742243000,-3687.84523101,0.00013304,2]
[423004449,1779742243000,-661.03999474,0.00013304,2]
[423004464,1779742246000,-96939.06749857,0.00013304,2]
[423004473,1779742249000,1493.33508358,0.00026035,120]
[423004472,1779742249000,1493.33508358,0.00025965,120]
[423004474,1779742250000,1493.33508358,0.00026105,120]
[423004487,1779742564000,179.16,6.206e-05,2]
[423004520,1779742987000,285.36772064,0.00011,7]
[423004528,1779743311000,189.59,5.713e-05,2]
[423004531,1779743340000,1000.0,0.00028079,120]
[423004539,1779743431000,-250.0,0.00010987,2]
[423004538,1779743431000,-200.0,0.00010959,2]
[423004541,1779743431000,-150.0,0.00011109,2]
[423004543,1779743431000,-59.19238702,0.00011219,2]
[423004542,1779743431000,-230.80761298,0.00011219,2]
[423004544,1779743431000,-1606.14,0.00011353,2]
[423004547,1779743431000,-591.42,0.00011425,2]
[423004545,1779743431000,-150.0,0.00011359,2]
[423004549,1779743431000,-159.35,0.00011478,2]
[423004550,1779743431000,-150.0,0.00011605,2]
[423004551,1779743431000,-200.0,0.00011627,2]
[423004540,1779743431000,-152.0,0.00011016,7]
[423004548,1779743431000,-2648.76,0.00011446,2]
[423004557,1779743431000,-300.0,0.00011915,2]
[423004554,1779743431000,-159.35,0.0001186,2]
[423004546,1779743431000,-2000.0,0.00011388,2]
[423004562,1779743431000,-2610.0,0.00012027,2]
[423004564,1779743431000,-250.0,0.00012055,2]
[423004560,1779743431000,-173.03,0.0001195,2]
[423004561,1779743431000,-208.87966228,0.00011972,2]
[423004563,1779743431000,-250.0,0.00012055,2]
[423004558,1779743431000,-3321.0,0.00011916,2]
[423004556,1779743431000,-1200.0,0.00011915,2]
[423004553,1779743431000,-152.49798758,0.0001176,2]
[423004555,1779743431000,-202.0,0.00011915,2]
[423004552,1779743431000,-207.99,0.00011649,2]
[423004559,1779743431000,-3091.17,0.0001195,2]
[423004575,1779743432000,-152.49798757,0.00012379,2]
[423004580,1779743432000,-3300.0,0.000128,4]
[423004579,1779743432000,-1600.0,0.000127,4]
[423004577,1779743432000,-285.36772064,0.00012625,2]
[423004578,1779743432000,-159.35,0.00012625,2]
[423004576,1779743432000,-179.16,0.00012412,2]
[423004574,1779743432000,-588.73,0.00012376,2]
[423004566,1779743432000,-488.2,0.00012074,2]
[423004569,1779743432000,-500.0,0.00012217,2]
[423004570,1779743432000,-159.35,0.00012243,2]
[423004571,1779743432000,-150.0,0.00012243,2]
[423004572,1779743432000,-490.85,0.00012316,2]
[423004568,1779743432000,-162.53,0.00012176,2]
[423004582,1779743432000,-5000.0,0.000129,4]
[423004567,1779743432000,-166.66,0.0001209,2]
[423004573,1779743432000,-445.38,0.00012329,2]
[423004583,1779743432000,-152.49798757,0.00012998,2]
[423004565,1779743432000,-4059.02,0.00012063,2]
[423004586,1779743432000,-3823.15770812,0.0001308,2]
[423004600,1779743432000,-708.24423702,0.0001318,2]
[423004581,1779743432000,-2000.0,0.00012812,2]
[423004599,1779743432000,-1018.1099348,0.0001318,2]
[423004597,1779743432000,-190.38846309,0.0001318,2]
[423004596,1779743432000,-1680.0,0.00013107,2]
[423004592,1779743432000,-420.0,0.00013081,2]
[423004590,1779743432000,-2500.0,0.0001308,2]
[423004593,1779743432000,-405.71966649,0.00013104,2]
[423004598,1779743432000,-149.82987171,0.0001318,2]
[423004595,1779743432000,-5000.0,0.00013104,2]
[423004594,1779743432000,-2000.0,0.00013104,2]
[423004588,1779743432000,-16264.97410238,0.0001308,2]
[423004589,1779743432000,-975.53584601,0.0001308,2]
[423004587,1779743432000,-700.19088126,0.0001308,2]
[423004585,1779743432000,-448.87485434,0.0001308,2]
[423004584,1779743432000,-41738.9251539,0.0001308,2]
[423004591,1779743432000,-288.07411122,0.0001308,2]
[423004628,1779743437000,-192.6211001,0.0001318,2]
[423004627,1779743437000,-44811.94023658,0.0001318,2]
[423004630,1779743437000,-1511.2018041,0.0001318,2]
[423004629,1779743437000,-58797.2893713,0.0001318,2]
[423004631,1779743437000,-148108.7017281,0.0001318,2]
[423004634,1779743437000,-1176.94101003,0.00013203,3]
[423004633,1779743437000,-6197.8980336,0.0001318,2]
[423004637,1779743437000,-151.0,0.00013204,2]
[423004636,1779743437000,-150.0,0.00013203,2]
[423004635,1779743437000,-500.0,0.00013203,2]
[423004632,1779743437000,-453.6244464,0.0001318,2]
[423004640,1779743438000,-73492.74470438,0.00013204,2]
[423004638,1779743438000,-13599.90746205,0.00013204,2]
[423004639,1779743438000,-32637.395948,0.00013204,2]
[423004642,1779743438000,-3448.25219006,0.00013204,2]
[423004641,1779743438000,-131725.55696474,0.00013204,2]
[423004643,1779743438000,-620.4,0.00013204,2]
[423004657,1779743440000,-3549.4941997,0.00013204,2]
[423004658,1779743440000,-22111.56690281,0.00013204,2]
[423004655,1779743440000,-1071.1715126,0.00013204,2]
[423004656,1779743440000,-17184.961377,0.00013204,2]
[423004654,1779743440000,-1025.49280924,0.00013204,2]
[423004679,1779743443000,-2589.57115365,0.00013204,2]
[423004677,1779743443000,-1291.67448653,0.00013204,2]
[423004676,1779743443000,-39027.89727592,0.00013204,2]
[423004675,1779743443000,-5700.0,0.00013204,2]
[423004678,1779743443000,-4471.25979456,0.00013204,2]
[423004703,1779743446000,-100367.11887611,0.00013204,2]
[423004702,1779743446000,-8894.83577746,0.00013204,2]
[423004715,1779743467000,169.415725,7.945e-05,2]
[423004721,1779743915000,294.01522733,0.00011,7]
[423004728,1779744140000,5609.47317589,0.0001,2]
[423004729,1779744220000,237.61553022,0.00011,7]
[423004730,1779744355000,280.570408,0.00010645,2]
[423004734,1779744414000,-348.62626251,0.00010699,2]
[423004735,1779744540000,1000.0,0.00028078,120]
[423004821,1779744632000,-536.65799141,0.00010698,2]
[423004810,1779744632000,-300.0,0.00010698,2]
[423004812,1779744632000,-150.0,0.00010698,2]
[423004814,1779744632000,-902.55739594,0.00010698,2]
[423004803,1779744632000,-151.0,0.00010696,2]
[423004806,1779744632000,-863.66363594,0.00010698,2]
[423004808,1779744632000,-336.33636406,0.00010698,2]
[423004817,1779744632000,-261.415,0.00010698,2]
[423004819,1779744632000,-1582.56,0.00010698,2]
[423004824,1779744632000,-124305.93793632,0.00010699,2]
[423004827,1779744632000,-1800.0,0.00010699,2]
[423004854,1779744632000,-156.11,0.00011341,2]
[423004836,1779744632000,-152.17736132,0.00010701,2]
[423004830,1779744632000,-46213.68355213,0.00010699,2]
[423004852,1779744632000,-2919.98,0.00011202,2]
[423004844,1779744632000,-152.0,0.00011026,7]
[423004848,1779744632000,-2320.85624471,0.00011099,2]
[423004846,1779744632000,-2320.85624477,0.00011099,2]
[423004850,1779744632000,-803.07,0.00011147,2]
[423004838,1779744632000,-151.0,0.00010956,2]
[423004840,1779744632000,-200.0,0.00010959,2]
[423004834,1779744632000,-11355.8886441,0.000107,2]
[423004832,1779744632000,-250.0,0.00010699,2]
[423004842,1779744632000,-208.87966228,0.00011014,2]
[423004927,1779744633000,-9977.9483262,0.00013173,2]
[423004926,1779744633000,-3820.0719635,0.00013173,2]
[423004923,1779744633000,-350.0,0.00013123,2]
[423004928,1779744633000,-12606.3131994,0.00013173,2]
[423004925,1779744633000,-252.0648473,0.00013169,2]
[423004921,1779744633000,-2000.0,0.00013097,2]
[423004931,1779744633000,-151.0,0.0001323,2]
[423004932,1779744633000,-500.0,0.00013253,2]
[423004930,1779744633000,-151.0,0.00013201,2]
[423004934,1779744633000,-649.02085,0.0001327,2]
[423004920,1779744633000,-1073.6098,0.0001308,2]
[423004929,1779744633000,-1136.55584805,0.00013193,2]
[423004933,1779744633000,-649.02085,0.0001327,2]
[423004938,1779744633000,-649.02085,0.0001327,2]
[423004935,1779744633000,-649.02085,0.0001327,2]
[423004937,1779744633000,-649.02085,0.0001327,2]
[423004944,1779744633000,-2886.78,0.0001337,2]
[423004916,1779744633000,-1136.55584814,0.0001298,2]
[423004941,1779744633000,-500.0,0.00013356,2]
[423004942,1779744633000,-500.0,0.00013356,2]
[423004945,1779744633000,-163.0,0.000134,2]
[423004939,1779744633000,-274.23579302,0.00013304,2]
[423004940,1779744633000,-386.82878729,0.00013304,2]
[423004946,1779744633000,-1589.0,0.000134,2]
[423004948,1779744633000,-1136.55584805,0.00013407,2]
[423004947,1779744633000,-2316.0,0.000134,2]
[423004950,1779744633000,-252.0648473,0.00013457,2]
[423004936,1779744633000,-649.02085,0.0001327,2]
[423004918,1779744633000,-2320.85624471,0.00012988,2]
[423004906,1779744633000,-6472.2988565,0.00012925,2]
[423004901,1779744633000,-433.0,0.0001287,2]
[423004949,1779744633000,-201.44549433,0.00013437,2]
[423004858,1779744633000,-2320.85624471,0.00011555,2]
[423004856,1779744633000,-7611.31985095,0.00011446,2]
[423004860,1779744633000,-7956.0,0.00011611,2]
[423004862,1779744633000,-156.11,0.00011624,2]
[423004864,1779744633000,-2000.0,0.00011642,2]
[423004866,1779744633000,-195.14,0.00011716,2]
[423004879,1779744633000,-7625.0,0.00011904,2]
[423004883,1779744633000,-1128.0,0.00011986,2]
[423004885,1779744633000,-2320.85624471,0.00012033,2]
[423004887,1779744633000,-166.66,0.00012072,2]
[423004870,1779744633000,-255.0,0.00011736,2]
[423004881,1779744633000,-156.11,0.00011908,2]
[423004872,1779744633000,-1680.0,0.00011768,2]
[423004877,1779744633000,-150.0,0.00011769,2]
[423004874,1779744633000,-250.0,0.00011769,2]
[423004868,1779744633000,-2263.0,0.00011719,2]
[423004889,1779744633000,-500.0,0.00012137,2]
[423004891,1779744633000,-166.32,0.00012162,2]
[423004893,1779744633000,-156.11,0.00012191,2]
[423004895,1779744633000,-156.11,0.00012475,2]
[423004897,1779744633000,-2320.85624471,0.00012511,2]
[423004904,1779744633000,-252.06484737,0.0001288,2]
[423004912,1779744633000,-151.0,0.00012977,2]
[423004908,1779744633000,-2351.0,0.00012944,2]
[423004910,1779744633000,-500.0,0.00012959,2]
[423004899,1779744633000,-350.0,0.00012781,2]
[423004914,1779744633000,-500.0,0.00012979,2]
[423004955,1779744633000,-150.0,0.00013488,2]
[423004943,1779744633000,-700.0,0.00013356,2]
[423004953,1779744633000,-150.0,0.00013488,2]
[423004984,1779744633000,-200.0,0.00013699,2]
[423004988,1779744633000,-500.0,0.00013699,10]
[423004995,1779744633000,-500.0,0.00013714,2]
[423004991,1779744633000,-500.0,0.00013699,10]
[423004992,1779744633000,-172.80296735,0.00013699,10]
[423004989,1779744633000,-500.0,0.00013699,10]
[423004990,1779744633000,-500.0,0.00013699,10]
[423004987,1779744633000,-500.0,0.00013699,10]
[423004985,1779744633000,-500.0,0.00013699,10]
[423004993,1779744633000,-160.0,0.00013701,2]
[423004996,1779744633000,-150.0,0.00013714,2]
[423004998,1779744633000,-150.0,0.00013714,2]
[423004997,1779744633000,-500.0,0.00013714,2]
[423004986,1779744633000,-500.0,0.00013699,10]
[423005004,1779744633000,-500.0,0.00013714,2]
[423004999,1779744633000,-500.0,0.00013714,2]
[423005007,1779744633000,-500.0,0.00013714,2]
[423005001,1779744633000,-500.0,0.00013714,2]
[423005005,1779744633000,-500.0,0.00013714,2]
[423005000,1779744633000,-197.0,0.00013714,2]
[423005006,1779744633000,-500.0,0.00013714,2]
[423005002,1779744633000,-500.0,0.00013714,2]
[423005008,1779744633000,-247.48052146,0.00013714,2]
[423005010,1779744633000,-500.0,0.00013714,2]
[423005009,1779744633000,-500.0,0.00013714,2]
[423005011,1779744633000,-500.0,0.00013714,2]
[423005013,1779744633000,-500.0,0.00013714,2]
[423004951,1779744633000,-2320.85624471,0.00013466,2]
[423005003,1779744633000,-500.0,0.00013714,2]
[423004983,1779744633000,-166.66,0.00013699,2]
[423004994,1779744633000,-150.0,0.00013714,2]
[423004980,1779744633000,-500.0,0.00013698,2]
[423004952,1779744633000,-150.0,0.00013488,2]
[423004954,1779744633000,-150.0,0.00013488,2]
[423004956,1779744633000,-150.0,0.00013488,2]
[423004957,1779744633000,-244.85307008,0.00013564,2]
[423004981,1779744633000,-500.0,0.00013698,2]
[423004960,1779744633000,-500.0,0.00013698,2]
[423005012,1779744633000,-500.0,0.00013714,2]
[423004959,1779744633000,-1136.55584805,0.0001362,2]
[423004962,1779744633000,-500.0,0.00013698,2]
[423004961,1779744633000,-500.0,0.00013698,2]
[423004966,1779744633000,-500.0,0.00013698,2]
[423004963,1779744633000,-500.0,0.00013698,2]
[423004967,1779744633000,-500.0,0.00013698,2]
[423004969,1779744633000,-500.0,0.00013698,2]
[423004958,1779744633000,-405.0,0.00013604,5]
[423004968,1779744633000,-500.0,0.00013698,2]
[423004982,1779744633000,-215.38528485,0.00013699,2]
[423004965,1779744633000,-500.0,0.00013698,2]
[423004979,1779744633000,-500.0,0.00013698,2]
[423004977,1779744633000,-264.34442925,0.00013698,2]
[423004978,1779744633000,-500.0,0.00013698,2]
[423004976,1779744633000,-500.0,0.00013698,2]
[423004973,1779744633000,-500.0,0.00013698,2]
[423004975,1779744633000,-500.0,0.00013698,2]
[423004972,1779744633000,-500.0,0.00013698,2]
[423004970,1779744633000,-500.0,0.00013698,2]
[423004971,1779744633000,-500.0,0.00013698,2]
[423004964,1779744633000,-500.0,0.00013698,2]
[423004974,1779744633000,-318.63818278,0.00013698,2]
[423005033,1779744634000,-252.0648473,0.00014034,2]
[423005029,1779744634000,-250.0,0.00014,2]
[423005030,1779744634000,-2226.0,0.00014,2]
[423005026,1779744634000,-308.0,0.000139,2]
[423005022,1779744634000,-252.0648473,0.00013746,2]
[423005025,1779744634000,-315.0,0.000139,2]
[423005032,1779744634000,-200.0,0.00014,5]
[423005031,1779744634000,-1200.0,0.00014,5]
[423005028,1779744634000,-166.66,0.00013973,2]
[423005018,1779744634000,-163.0,0.0001372,2]
[423005023,1779744634000,-1136.55584805,0.00013833,2]
[423005021,1779744634000,-1589.0,0.0001372,2]
[423005020,1779744634000,-2316.0,0.0001372,2]
[423005017,1779744634000,-2316.0,0.0001372,2]
[423005019,1779744634000,-1589.0,0.0001372,2]
[423005015,1779744634000,-500.0,0.00013714,2]
[423005014,1779744634000,-500.0,0.00013714,2]
[423005016,1779744634000,-577.41851285,0.00013714,2]
[423005035,1779744634000,-166.284,0.00014037,2]
[423005024,1779744634000,-166.66,0.00013836,2]
[423005036,1779744634000,-500.0,0.00014039,2]
[423005027,1779744634000,-2320.85624471,0.00013944,2]
[423005037,1779744634000,-500.0,0.00014039,2]
[423005034,1779744634000,-1776.036,0.00014037,2]
[423005057,1779744634000,-645.55505471,0.00014239,2]
[423005055,1779744634000,-700.0,0.000142,5]
[423005049,1779744634000,-500.0,0.000141,5]
[423005048,1779744634000,-2400.0,0.000141,5]
[423005053,1779744634000,-166.32,0.00014169,2]
[423005056,1779744634000,-1543.59030466,0.00014239,2]
[423005052,1779744634000,-250.0,0.00014137,2]
[423005051,1779744634000,-736.0,0.00014121,2]
[423005050,1779744634000,-166.66,0.0001411,2]
[423005054,1779744634000,-3600.0,0.000142,5]
[423005047,1779744634000,-296.027349,0.000141,2]
[423005045,1779744634000,-166.66,0.00014086,2]
[423005043,1779744634000,-163.0,0.0001404,2]
[423005041,1779744634000,-1589.0,0.0001404,2]
[423005042,1779744634000,-2316.0,0.0001404,2]
[423005039,1779744634000,-500.0,0.00014039,2]
[423005044,1779744634000,-1136.55584805,0.00014047,2]
[423005040,1779744634000,-2316.0,0.0001404,2]
[423005038,1779744634000,-500.0,0.00014039,2]
[423005046,1779744634000,-151.0,0.000141,2]
[423005063,1779744638000,-500.0,0.00012978,2]
[423005062,1779744638000,-500.0,0.00012978,2]
[423005061,1779744638000,-500.0,0.00012978,2]
[423005064,1779744638000,-500.0,0.00012978,2]
[423005067,1779744638000,-313.65792298,0.00012978,2]
[423005065,1779744638000,-500.0,0.00012978,2]
[423005068,1779744638000,-274.1928601,0.00012978,2]
[423005071,1779744638000,-500.0,0.00012978,2]
[423005072,1779744638000,-362.10713989,0.00012978,2]
[423005070,1779744638000,-500.0,0.00012978,2]
[423005069,1779744638000,-500.0,0.00012978,2]
[423005066,1779744638000,-500.0,0.00012978,2]
[423005257,1779744640000,-137.89286011,0.00012978,2]
[423005258,1779744640000,-297.61475279,0.00012978,2]
[423005260,1779744640000,-78.18516079,0.00012978,2]
[423005259,1779744640000,-202.38524721,0.00012978,2]
[423005261,1779744640000,-459.413461,0.00012978,2]
[423005263,1779744640000,-500.0,0.00012978,2]
[423005264,1779744640000,-500.0,0.00012978,2]
[423005265,1779744640000,-177.98653891,0.00012978,2]
[423005262,1779744640000,-500.0,0.00012978,2]
[423005276,1779744643000,-500.0,0.00012978,2]